fUST/lending_fUST_20240611
["ID","MTS","AMOUNT","RATE_DAILY","PERIOD"]
[329054512,1718073049467,-10511.3227924,0.00024931,2]
[329054515,1718073049477,-3802.54311937,0.00024931,10]
[329054518,1718073049487,-300.88693981,0.00024931,2]
[329054521,1718073049498,-16228.7811546,0.00024931,2]
[329054524,1718073049510,-2100.6780329,0.00024931,2]
[329054526,1718073049520,-595.78,0.00024931,2]
[329054528,1718073049529,-291.83607441,0.00024931,2]
[329054530,1718073049539,-504.62,0.00024931,2]
[329054532,1718073049549,-2630.67,0.00024931,2]
[329054534,1718073049564,-151.0,0.00024931,7]
[329054536,1718073049574,-868.69278167,0.00024942,2]
[329054539,1718073049594,-868.69278167,0.00024964,2]
[329054542,1718073049605,-620.00000103,0.0002497,2]
[329054544,1718073049618,-16253.60833338,0.00025,2]
[329054546,1718073049629,-402.02757446,0.00025,2]
[329054548,1718073049639,-876.70454335,0.00025,2]
[329054550,1718073049650,-201.5194358,0.00025,2]
[329054552,1718073049660,-298.77276158,0.00025,2]
[329054554,1718073049671,-291.09975244,0.00025,2]
[329054556,1718073049682,-300.0,0.00025,2]
[329054558,1718073049692,-300.0,0.00025,2]
[329054560,1718073049702,-300.0,0.00025,2]
[329054562,1718073049713,-1846.45161947,0.00025,2]
[329054564,1718073049724,-1022.96095793,0.00025,2]
[329054566,1718073049735,-1000.0,0.00025,9]
[329054568,1718073049746,-160.0,0.00025,2]
[329054570,1718073049756,-296.76912649,0.00025,2]
[329054572,1718073049767,-4118.3486399,0.00025,10]
[329054574,1718073049778,-35727.40603699,0.00025,5]
[329054576,1718073049789,-828.18892664,0.00025,30]
[329054578,1718073049799,-429.2,0.00025,2]
[329054580,1718073049810,-420.48177148,0.00025,7]
[329054582,1718073049820,-868.69278167,0.00025046,2]
[329054584,1718073049831,-160.0,0.00025068,9]
[329054586,1718073049841,-402.07318891,0.00025083,2]
[329054588,1718073049851,-402.07318891,0.00025101,2]
[329054590,1718073049861,-154.02723272,0.00025102,2]
[329054592,1718073049873,-152.84472845,0.00025108,2]
[329054594,1718073049883,-152.84472845,0.0002511,2]
[329054596,1718073049894,-402.07318891,0.0002515,2]
[329054598,1718073049904,-595.78,0.00025205,2]
[329054601,1718073049915,-504.62,0.00025205,2]
[329054603,1718073049927,-2630.67,0.00025205,2]
[329054605,1718073049937,-868.69278167,0.00025229,2]
[329054607,1718073049947,-154.02723272,0.00025235,2]
[329054609,1718073049957,-154.02723272,0.00025251,2]
[329054611,1718073049967,-402.07318891,0.00025273,2]
[329054613,1718073049978,-160.0,0.00025313,10]
[329054615,1718073049988,-868.69278167,0.00025332,2]
[329054617,1718073049998,-152.84472845,0.00025374,2]
[329054619,1718073050009,-578.24156123,0.00025381,2]
[329054621,1718073050019,-154.02723272,0.00025389,2]
[329054623,1718073050030,-155.41757439,0.0002539,2]
[329054625,1718073050040,-226.4692,0.00025404,30]
[329054627,1718073050051,-152.84472845,0.0002541,2]
[329054629,1718073050061,-154.02723272,0.00025428,2]
[329054631,1718073050072,-152.84472845,0.00025444,2]
[329054633,1718073050083,-402.07318891,0.00025457,2]
[329054635,1718073050093,-2710.793835,0.00025465,2]
[329054637,1718073050104,-3117.041903,0.00025465,2]
[329054639,1718073050114,-169.352306,0.00025465,2]
[329054641,1718073050125,-595.78022394,0.00025479,2]
[329054643,1718073050134,-504.71283437,0.00025479,2]
[329054645,1718073050144,-2630.87877704,0.00025479,2]
[329054647,1718073050155,-67770.26951839,0.00025499,2]
[329054649,1718073050166,-1500.0,0.000255,2]
[329054651,1718073050177,-1500.0,0.000255,2]
[329054653,1718073050187,-1500.0,0.000255,2]
[329054655,1718073050197,-1500.0,0.000255,2]
[329054657,1718073050207,-1500.0,0.000255,2]
[329054659,1718073050217,-1500.0,0.000255,2]
[329054661,1718073050227,-1500.0,0.000255,2]
[329054663,1718073050237,-1500.0,0.000255,2]
[329054665,1718073050247,-1350.48,0.000255,2]
[329054666,1718073050259,-1500.0,0.000255,2]
[329054668,1718073050270,-1500.0,0.000255,2]
[329054671,1718073050281,-2534.22454298,0.000255,60]
[329054673,1718073050291,-402.07318891,0.00025537,2]
[329054675,1718073050302,-868.69278167,0.0002555,2]
[329054677,1718073050313,-160.0,0.00025558,11]
[329054679,1718073050324,-152.84472845,0.00025578,2]
[329054681,1718073050336,-868.69278167,0.00025616,2]
[329054683,1718073050347,-868.69278167,0.00025698,2]
[329054685,1718073050358,-868.69278167,0.00025727,2]
[329054687,1718073050370,-174.6290026,0.00025753,2]
[329054689,1718073050380,-154.02723272,0.00025772,2]
[329054691,1718073050390,-2710.793835,0.00025783,2]
[329054693,1718073050400,-3117.041903,0.00025783,2]
[329054695,1718073050410,-211.22437205,0.00025786,3]
[329054697,1718073050424,-154.02723272,0.00025796,2]
[329054699,1718073050435,-160.0,0.00025803,12]
[329054701,1718073050446,-152.84472845,0.00025845,2]
[329054703,1718073050456,-402.07318891,0.00025893,2]
[329054705,1718073050468,-300.0,0.000259,2]
[329054707,1718073050478,-868.69278167,0.00025917,2]
[329054709,1718073050490,-868.69278167,0.00025919,2]
[329054711,1718073050501,-154.02723272,0.00025966,2]
[329054713,1718073050516,-868.69278167,0.00025995,2]
[329054715,1718073050527,-1000.0,0.00026,26]
[329054717,1718073050537,-160.0,0.00026048,13]
[329054719,1718073050548,-2710.793835,0.00026101,2]
[329054721,1718073050567,-3117.041903,0.00026101,2]
[329054723,1718073050578,-402.07318891,0.00026127,2]
[329054725,1718073050588,-402.07318891,0.00026148,2]
[329054727,1718073050599,-868.69278167,0.0002615,2]
[329054729,1718073050610,-241.92315512,0.00026173,2]
[329054731,1718073050622,-281.74,0.00026198,35]
[329054733,1718073050634,-150.5,0.00026208,35]
[329054735,1718073050645,-216.6,0.00026208,35]
[329054737,1718073050657,-152.84472845,0.00026208,2]
[329054739,1718073050667,-620.00000005,0.00026218,2]
[329054741,1718073050677,-868.69278167,0.00026245,2]
[329054743,1718073050688,-154.02723272,0.00026253,2]
[329054746,1718073050699,-160.0,0.00026293,14]
[329054748,1718073050710,-266.50328308,0.00026293,5]
[329054750,1718073050720,-710.41036892,0.00026301,2]
[329054751,1718073050731,-2710.793835,0.0002642,2]
[329054753,1718073050741,-3117.041903,0.0002642,2]
[329054755,1718073050753,-868.69278167,0.00026433,2]
[329054757,1718073050763,-154.02723272,0.00026457,2]
[329054759,1718073050774,-7458.94652043,0.0002649,2]
[329054761,1718073050784,-402.07318891,0.00026498,2]
[329054763,1718073050794,-3000.0,0.000265,2]
[329054766,1718073050804,-3000.0,0.0002651,2]
[329054768,1718073050815,-3000.0,0.0002652,2]
[329054770,1718073050825,-868.69278167,0.00026526,2]
[329054772,1718073050836,-868.69278167,0.00026527,2]
[329054774,1718073050846,-3000.0,0.0002653,2]
[329054776,1718073050856,-3000.0,0.0002654,2]
[329054778,1718073050869,-3000.0,0.0002655,2]
[329054780,1718073050879,-154.02723272,0.00026559,2]
[329054782,1718073050889,-3000.0,0.0002656,2]
[329054783,1718073050899,-3000.0,0.0002657,2]
[329054785,1718073050909,-3000.0,0.0002658,2]
[329054787,1718073050919,-3000.0,0.0002659,2]
[329054789,1718073050929,-402.07318891,0.00026595,2]
[329054791,1718073050939,-2051.14296057,0.000266,2]
[329054793,1718073050950,-2354.29,0.000266,3]
[329054795,1718073050961,-2354.29,0.000266,3]
[329054797,1718073050971,-2354.29,0.000266,3]
[329054799,1718073050982,-2354.29,0.000266,3]
[329054801,1718073050993,-2354.29,0.000266,3]
[329054803,1718073051003,-2354.29,0.000266,3]
[329054805,1718073051013,-2354.29,0.000266,3]
[329054807,1718073051023,-2354.29,0.000266,3]
[329054809,1718073051033,-2354.29,0.000266,3]
[329054811,1718073051044,-2354.29,0.000266,3]
[329054813,1718073051054,-2354.29,0.000266,3]
[329054815,1718073051064,-2354.29,0.000266,3]
[329054817,1718073051075,-2354.29,0.000266,3]
[329054819,1718073051085,-2354.29,0.000266,3]
[329054833,1718073051223,-2354.29,0.000266,3]
[329054835,1718073051233,-2354.29,0.000266,3]
[329054837,1718073051243,-2354.29,0.000266,3]
[329054839,1718073051253,-2354.29,0.000266,3]
[329054841,1718073051263,-2354.29,0.000266,3]
[329054843,1718073051273,-2354.29,0.000266,3]
[329054845,1718073051283,-3000.0,0.000266,2]
[329054847,1718073051293,-323.0,0.00026609,2]
[329054849,1718073051303,-3000.0,0.0002661,2]
[329054850,1718073051313,-868.69278167,0.00026617,2]
[329054852,1718073051323,-3000.0,0.0002662,2]
[329054854,1718073051333,-402.07318891,0.00026628,2]
[329054856,1718073051343,-3000.0,0.0002663,2]
[329054858,1718073051354,-3000.0,0.0002664,2]
[329054860,1718073051364,-3000.0,0.0002665,2]
[329054862,1718073051380,-3000.0,0.0002666,2]
[329054864,1718073051390,-151.649272,0.0002666,2]
[329054866,1718073051401,-163.09072906,0.00026663,2]
[329054868,1718073051412,-3000.0,0.0002667,2]
[329054870,1718073051428,-156.21991519,0.00026672,2]
[329054872,1718073051438,-3000.0,0.0002668,2]
[329054874,1718073051448,-151.0,0.0002668,2]
[329054876,1718073051457,-3000.0,0.0002669,2]
[329054878,1718073051468,-402.07318891,0.00026694,2]
[329054880,1718073051478,-3000.0,0.000267,2]
[329054882,1718073051489,-3000.0,0.0002671,2]
[329054884,1718073051499,-3000.0,0.0002672,2]
[329054886,1718073051513,-3000.0,0.0002673,2]
[329054888,1718073051524,-2710.793835,0.00026738,2]
[329054890,1718073051534,-3117.041903,0.00026738,2]
[329054892,1718073051544,-3000.0,0.0002674,2]
[329054894,1718073051557,-1588.83943736,0.0002675,2]
[329054896,1718073051568,-3000.0,0.0002675,2]
[329054898,1718073051578,-3000.0,0.0002676,2]
[329054900,1718073051588,-3000.0,0.0002677,2]
[329054902,1718073051598,-402.07318891,0.00026775,2]
[329054904,1718073051608,-3000.0,0.0002678,2]
[329054905,1718073051621,-3000.0,0.0002679,2]
[329054907,1718073051631,-3000.0,0.000268,2]
[329054909,1718073051641,-151.0,0.000268,2]
[329054912,1718073051651,-151.0,0.000268,2]
[329054913,1718073051661,-151.0,0.000268,2]
[329054915,1718073051671,-151.988398,0.000268,2]
[329054917,1718073051681,-151.0,0.000268,2]
[329054919,1718073051690,-151.0,0.000268,2]
[329054921,1718073051700,-153.181627,0.000268,2]
[329054923,1718073051710,-151.0,0.000268,2]
[329054926,1718073051722,-151.0,0.000268,2]
[329054927,1718073051737,-151.0,0.000268,2]
[329054930,1718073051748,-151.0,0.000268,2]
[329054932,1718073051758,-3000.0,0.0002681,2]
[329054933,1718073051768,-3000.0,0.0002682,2]
[329054935,1718073051777,-3000.0,0.0002683,2]
[329054937,1718073051787,-623.14630261,0.00026834,2]
[329054939,1718073051797,-3000.0,0.0002684,2]
[329054941,1718073051806,-750.0,0.00026849,2]
[329054943,1718073051816,-3000.0,0.0002685,2]
[329054945,1718073051826,-3000.0,0.0002686,2]
[329054947,1718073051835,-3000.0,0.0002687,2]
[329054949,1718073051845,-3000.0,0.0002688,2]
[329054951,1718073051854,-3000.0,0.0002689,2]
[329054953,1718073051865,-300.0,0.000269,2]
[329054954,1718073051878,-3000.0,0.000269,2]
[329054956,1718073051888,-3000.0,0.0002691,2]
[329054958,1718073051898,-3000.0,0.0002692,2]
[329054960,1718073051908,-3000.0,0.0002693,2]
[329054962,1718073051918,-868.69278167,0.00026933,2]
[329054964,1718073051927,-3000.0,0.0002694,2]
[329054966,1718073051937,-3000.0,0.0002695,2]
[329054968,1718073051947,-402.07318891,0.00026953,2]
[329054970,1718073051956,-5739.866342,0.0002696,2]
[329054972,1718073051966,-154.02723272,0.00026976,2]
[329054974,1718073051975,-154.02723272,0.00026977,2]
[329054976,1718073051985,-1000.0,0.00027,27]
[329054978,1718073051995,-4080.00951735,0.00027,2]
[329055026,1718073052493,-7402.10828958,0.00027,2]
[329055027,1718073052503,-2844.75644767,0.00027,30]
[329055029,1718073052517,-491.1681559,0.00027,2]
[329055030,1718073052528,-152.532367,0.00027,2]
[329055031,1718073052538,-151.0,0.00027,2]
[329055032,1718073052548,-260.436167,0.00027,2]
[329055033,1718073052562,-5390.54973277,0.00027,2]
[329055034,1718073052572,-10000.0,0.00027,2]
[329055035,1718073052582,-10000.0,0.00027,2]
[329055036,1718073052592,-10000.0,0.00027,2]
[329055037,1718073052602,-10000.0,0.00027,2]
[329055038,1718073052612,-12832.41229733,0.00027,2]
[329055039,1718073052625,-1636.81639306,0.00027,2]
[329055040,1718073052635,-200.0,0.00027,2]
[329055041,1718073052645,-239.434477,0.00027,2]
[329055042,1718073052654,-198.335662,0.00027022,2]
[329055043,1718073052666,-154.02723272,0.00027056,2]
[329055044,1718073052679,-152.84472845,0.00027071,2]
[329055045,1718073052692,-2354.29,0.000271,3]
[329055046,1718073052705,-2354.29,0.000271,3]
[329055047,1718073052718,-2354.29,0.000271,3]
[329055049,1718073052731,-2354.29,0.000271,3]
[329055051,1718073052742,-2354.29,0.000271,3]
[329055053,1718073052753,-2354.29,0.000271,3]
[329055055,1718073052764,-2354.29,0.000271,3]
[329055057,1718073052778,-2354.29,0.000271,3]
[329055059,1718073052790,-2354.29,0.000271,3]
[329055061,1718073052801,-2354.29,0.000271,3]
[329055064,1718073052814,-2354.29,0.000271,3]
[329055066,1718073052826,-2354.29,0.000271,3]
[329055068,1718073052839,-2354.29,0.000271,3]
[329055070,1718073052852,-2354.29,0.000271,3]
[329055073,1718073052864,-2354.29,0.000271,3]
[329055075,1718073052880,-2354.29,0.000271,3]
[329055077,1718073052895,-1099.43688431,0.000271,3]
[329055080,1718073052910,-1075.38,0.000271,3]
[329055083,1718073052926,-179.47311569,0.000271,3]
[329055085,1718073052938,-161.13159525,0.000271,3]
[329057266,1718073197736,7000.0,0.00023,30]
[329057348,1718074235340,-658.12668409,0.00016811,2]
[329057350,1718074235353,-2.66225211,0.00016811,2]
[329057352,1718074235363,-280.1536298,0.00016872,2]
[329057354,1718074235373,-240.65870596,0.00016924,2]
[329057356,1718074235385,-9.34129404,0.00016924,2]
[329057358,1718074235395,-182.5499108,0.00016982,2]
[329057360,1718074235405,-300.0,0.00017334,2]
[329057362,1718074235415,-300.0,0.00017334,2]
[329057364,1718074235425,-24900.0,0.00017335,2]
[329057366,1718074235435,-708.17424741,0.00017394,2]
[329057367,1718074235445,-11238.9803729,0.00017453,2]
[329057369,1718074235455,-2054.7386784,0.00017494,2]
[329057371,1718074235465,-1059.03948426,0.00018,2]
[329057373,1718074235475,-692.26255018,0.00018072,2]
[329057375,1718074235485,-190.23735943,0.00018073,2]
[329057377,1718074235495,-1983.79286683,0.00018384,2]
[329057379,1718074235505,-152.84197974,0.000189,2]
[329057381,1718074235515,-420.0,0.00018926,2]
[329057383,1718074235525,-708.1742474,0.00019041,2]
[329057385,1718074235535,-420.0,0.00019067,2]
[329057387,1718074235545,-160.102293,0.00019178,2]
[329057389,1718074235555,-160.004996,0.00019178,2]
[329057391,1718074235565,-153.0,0.00020287,2]
[329057393,1718074235576,-153.0,0.00020287,2]
[329057395,1718074235585,-153.0,0.00020287,2]
[329057397,1718074235596,-153.0,0.00020287,2]
[329057399,1718074235606,-153.0,0.00020287,2]
[329057401,1718074235616,-153.0,0.00020287,2]
[329057403,1718074235625,-153.0,0.00020287,2]
[329057405,1718074235635,-153.0,0.00020287,2]
[329057407,1718074235645,-153.0,0.00020287,2]
[329057409,1718074235655,-153.0,0.00020287,2]
[329057411,1718074235665,-153.0,0.00020287,2]
[329057413,1718074235674,-153.0,0.00020287,2]
[329057415,1718074235685,-153.0,0.00020287,2]
[329057417,1718074235696,-153.0,0.00020287,2]
[329057419,1718074235706,-153.0,0.00020287,2]
[329057421,1718074235716,-153.0,0.00020287,2]
[329057423,1718074235726,-153.0,0.00020287,2]
[329057425,1718074235736,-28.71189197,0.00020287,2]
[329057463,1718074241132,-124.28810803,0.00020287,2]
[329057464,1718074241142,-153.0,0.00020287,2]
[329057465,1718074241152,-153.0,0.00020287,2]
[329057466,1718074241162,-153.0,0.00020287,2]
[329057468,1718074241171,-153.0,0.00020287,2]
[329057470,1718074241182,-153.0,0.00020288,2]
[329057471,1718074241192,-153.0,0.00020288,2]
[329057472,1718074241202,-153.0,0.00020288,2]
[329057473,1718074241211,-84.43832813,0.00020288,2]
[329057474,1718074241223,-68.56167187,0.00020288,2]
[329057475,1718074241233,-153.0,0.00020288,2]
[329057476,1718074241243,-153.0,0.00020288,2]
[329057477,1718074241254,-153.0,0.00020288,2]
[329057478,1718074241264,-153.0,0.00020288,2]
[329057479,1718074241273,-153.0,0.00020288,2]
[329057480,1718074241282,-153.0,0.00020288,2]
[329057481,1718074241291,-153.0,0.00020288,2]
[329057482,1718074241301,-153.0,0.00020288,2]
[329057483,1718074241311,-153.0,0.00020288,2]
[329057484,1718074241321,-153.0,0.00020288,2]
[329057485,1718074241330,-153.0,0.00020288,2]
[329057486,1718074241340,-153.0,0.00020288,2]
[329057487,1718074241349,-153.0,0.00020288,2]
[329057488,1718074241359,-153.0,0.00020288,2]
[329057489,1718074241369,-153.0,0.00020288,2]
[329057490,1718074241379,-153.0,0.00020288,2]
[329057491,1718074241388,-153.0,0.00020288,2]
[329057492,1718074241398,-153.0,0.00020288,2]
[329057493,1718074241408,-153.0,0.00020288,2]
[329057494,1718074241417,-153.0,0.00020288,2]
[329057495,1718074241427,-153.0,0.00020288,2]
[329057496,1718074241439,-153.0,0.00020288,2]
[329057497,1718074241448,-153.0,0.00020288,2]
[329057498,1718074241458,-153.0,0.00020288,2]
[329057499,1718074241467,-153.0,0.00020288,2]
[329057500,1718074241477,-153.0,0.00020288,2]
[329057501,1718074241487,-153.0,0.00020288,2]
[329057502,1718074241497,-153.0,0.00020288,2]
[329057503,1718074241507,-153.0,0.00020288,2]
[329057504,1718074241517,-153.0,0.00020288,2]
[329057505,1718074241527,-153.0,0.00020288,2]
[329057506,1718074241537,-153.0,0.00020288,2]
[329057507,1718074241547,-153.0,0.00020288,2]
[329057508,1718074241556,-153.0,0.00020288,2]
[329057509,1718074241566,-153.0,0.00020288,2]
[329057510,1718074241576,-153.0,0.00020288,2]
[329057511,1718074241586,-153.0,0.00020288,2]
[329057512,1718074241597,-153.0,0.00020288,2]
[329057513,1718074241606,-153.0,0.00020288,2]
[329057514,1718074241616,-153.0,0.00020288,2]
[329057515,1718074241626,-153.0,0.00020288,2]
[329057516,1718074241635,-153.0,0.00020288,2]
[329057517,1718074241645,-153.0,0.00020288,2]
[329057518,1718074241654,-153.0,0.00020288,2]
[329057519,1718074241664,-153.0,0.00020288,2]
[329057520,1718074241674,-153.0,0.00020288,2]
[329057521,1718074241688,-153.0,0.00020288,2]
[329057522,1718074241698,-153.0,0.00020288,2]
[329057523,1718074241708,-153.0,0.00020288,2]
[329057524,1718074241718,-153.0,0.00020288,2]
[329057525,1718074241728,-153.0,0.00020288,2]
[329057526,1718074241738,-153.0,0.00020288,2]
[329057527,1718074241748,-153.0,0.00020288,2]
[329057528,1718074241758,-153.0,0.00020288,2]
[329057529,1718074241768,-153.0,0.00020288,2]
[329057530,1718074241778,-341.0,0.00020664,2]
[329057531,1718074241788,-504.40137113,0.00020688,2]
[329057532,1718074241800,-203.77287627,0.00020688,2]
[329057533,1718074241810,-529.61314579,0.000209,2]
[329057534,1718074241820,-18.0503675,0.00020974,2]
[329057535,1718074241832,-161.9496325,0.00020974,2]
[329057536,1718074241843,-500.0,0.00021635,2]
[329057537,1718074241853,-500.0,0.00021635,2]
[329057538,1718074241863,-500.0,0.00021635,2]
[329057539,1718074241873,-500.0,0.00021635,2]
[329057540,1718074241882,-500.0,0.00021635,2]
[329057541,1718074241892,-197.56760818,0.00021635,2]
[329057542,1718074241902,-500.0,0.00021635,2]
[329057543,1718074241912,-500.0,0.00021635,2]
[329057544,1718074241922,-500.0,0.00021635,2]
[329057545,1718074241934,-500.0,0.00021635,2]
[329057546,1718074241943,-500.0,0.00021635,2]
[329057547,1718074241953,-500.0,0.00021635,2]
[329057548,1718074241963,-500.0,0.00021635,2]
[329057549,1718074241973,-254.81265012,0.00021635,2]
[329057550,1718074241983,-284.74897466,0.00021635,2]
[329057551,1718074241994,-500.0,0.00021635,2]
[329057552,1718074242004,-500.0,0.00021635,2]
[329057553,1718074242015,-500.0,0.00021635,2]
[329057554,1718074242030,-500.0,0.00021635,2]
[329057555,1718074242040,-500.0,0.00021635,2]
[329057556,1718074242050,-500.0,0.00021635,2]
[329057557,1718074242061,-500.0,0.00021635,2]
[329057558,1718074242070,-500.0,0.00021635,2]
[329057559,1718074242080,-500.0,0.00021635,2]
[329057560,1718074242090,-500.0,0.00021635,2]
[329057561,1718074242102,-500.0,0.00021635,2]
[329057562,1718074242113,-179.42325026,0.00021635,2]
[329057563,1718074242123,-166.666666,0.00021918,2]
[329057564,1718074242133,-6435.24269543,0.00022,2]
[329057565,1718074242143,-19558.21815018,0.0002233,3]
[329057566,1718074242154,-175.57333316,0.00022331,2]
[329057567,1718074242164,-708.1742474,0.00022335,2]
[329057568,1718074242174,-166.666666,0.00022431,2]
[329057569,1718074242186,-519.89,0.00022464,3]
[329057570,1718074242195,-1178.57607466,0.00022474,2]
[329057571,1718074242205,-252958.01795351,0.0002288,2]
[329057584,1718074245301,-20007.597708,0.0002288,2]
[329057585,1718074245314,-533.58561713,0.0002288,2]
[329057599,1718074247120,-2720.0,0.0002288,2]
[329057603,1718074247132,-354.2,0.0002288,2]
[329057606,1718074247144,-342.80499812,0.0002288,2]
[329057772,1718074248768,-8117.28083795,0.0002288,2]
[329059515,1718074891082,660.11978951,9.999e-05,2]
[329059516,1718074957726,16193.59990816,9.999e-05,2]
[329059517,1718074965545,2095.64882228,9.999e-05,2]
[329059518,1718074973722,16193.59990816,9.999e-05,2]
[329059519,1718074982749,317.55665125,9.999e-05,2]
[329059520,1718074983546,2119.5314117,9.999e-05,2]
[329059521,1718074995733,9313.64367744,9.999e-05,2]
[329059523,1718075208595,573.31,0.000265,120]
[329059587,1718075435600,-227.6599271,0.00017877,2]
[329059589,1718075435612,-1059.03948426,0.00018,2]
[329059591,1718075435623,-606.81007704,0.00018799,2]
[329059593,1718075435633,-354.0871237,0.000188,2]
[329059595,1718075435644,-924.56913724,0.00018895,2]
[329059597,1718075435660,-19313.15373324,0.00018895,2]
[329059598,1718075435672,-518.2389719,0.00018896,2]
[329059600,1718075435684,-187.77768166,0.00018897,2]
[329059602,1718075435696,-16673.02897703,0.00018898,2]
[329059604,1718075435719,-18343.5340877,0.00018898,2]
[329059605,1718075435734,-353.07543052,0.000189,2]
[329059607,1718075435756,-160.102293,0.00019178,2]
[329059609,1718075435783,-2753.3468416,0.00019898,2]
[329059610,1718075435798,-250.5347389,0.00020185,2]
[329059613,1718075435833,-500.0,0.00020185,2]
[329059614,1718075435847,-198.30544163,0.00020185,2]
[329059616,1718075435858,-353.26925003,0.00020185,2]
[329059618,1718075435869,-11187.83191668,0.00020186,2]
[329059620,1718075435882,-11938.15035641,0.00020186,2]
[329059621,1718075435898,-354.0871237,0.00020245,2]
[329059623,1718075435909,-153.0,0.00020288,2]
[329059625,1718075435921,-153.0,0.00020288,2]
[329059636,1718075436078,-153.0,0.00020288,2]
[329059639,1718075436099,-153.0,0.00020288,2]
[329059641,1718075436111,-153.0,0.00020288,2]
[329059643,1718075436124,-153.0,0.00020297,2]
[329059645,1718075436134,-153.0,0.00020297,2]
[329059647,1718075436145,-153.0,0.00020297,2]
[329059649,1718075436158,-153.0,0.00020311,2]
[329059651,1718075436169,-153.0,0.00020311,2]
[329059653,1718075436180,-153.0,0.00020311,2]
[329059655,1718075436193,-153.0,0.00020311,2]
[329059657,1718075436206,-153.0,0.00020311,2]
[329059659,1718075436218,-1034.95150443,0.00020314,2]
[329059661,1718075436228,-581.63788988,0.00020415,2]
[329060232,1718075448112,-11334.2834767,0.00020415,2]
[329060372,1718075450229,-1515.16952978,0.00020415,2]
[329060374,1718075450243,-11468.90910364,0.00020415,2]
[329060376,1718075450254,-1034.95150439,0.00021443,2]
[329060378,1718075450265,-354.0871237,0.0002169,2]
[329060383,1718075450280,-166.666666,0.00021918,2]
[329060386,1718075450291,-500.0,0.0002243,2]
[329060389,1718075450306,-370.49680297,0.0002243,2]
[329060391,1718075450318,-500.0,0.0002243,2]
[329060393,1718075450329,-500.0,0.0002243,2]
[329060395,1718075450343,-500.0,0.0002243,2]
[329060397,1718075450356,-500.0,0.0002243,2]
[329060399,1718075450367,-500.0,0.0002243,2]
[329060401,1718075450377,-500.0,0.0002243,2]
[329060403,1718075450394,-500.0,0.0002243,2]
[329060405,1718075450406,-500.0,0.0002243,2]
[329060408,1718075450420,-500.0,0.0002243,2]
[329060410,1718075450439,-500.0,0.0002243,2]
[329060412,1718075450453,-500.0,0.0002243,2]
[329060414,1718075450465,-641.09343592,0.0002243,2]
[329060416,1718075450476,-500.0,0.0002243,2]
[329060418,1718075450488,-500.0,0.0002243,2]
[329060420,1718075450516,-500.0,0.0002243,2]
[329060422,1718075450538,-200.0,0.0002243,2]
[329060423,1718075450548,-166.666666,0.00022431,2]
[329060425,1718075450580,-1034.95150439,0.00022573,2]
[329060427,1718075450605,-4239.70515949,0.00022627,2]
[329060429,1718075450615,-1000.0,0.000228,10]
[329060431,1718075450626,-63935.86017698,0.0002288,2]
[329060858,1718075456822,722.49195225,9.999e-05,2]
[329060860,1718075798877,2682.75928745,9.999e-05,2]
[329060861,1718076078155,606.81007704,0.000185,2]
[329060862,1718076259206,524.49723493,9.999e-05,2]
[329060863,1718076300661,163.11846323,0.00019,2]
[329060864,1718076402159,1068.11035928,0.000189,2]
[329060875,1718076501214,198.3775005,0.00018381,2]
[329060880,1718076571637,307.947486,0.00018236,2]
[329060881,1718076636735,-1386.15759324,0.00019176,2]
[329060886,1718076636751,-914.03378746,0.00019176,2]